Cogmind - Beta 12 --- EXPLORER MODE // 2023.03.27 @ 22:03:44 Player: Analote Result: Self-destructed Performance ------------- Evolutions (5) 2500 Regions Visited (16) 3200 Robots Destroyed (176) 880 Value Destroyed (6509) 6509 Prototype IDs (7) 140 Alien Tech Used (0) 0 Bonus (1594) 1594 TOTAL SCORE: 14823 Bonus ------- High Alert Combat Kills 431 Follower Combat Kills 706 Entered Garrisons 200 Aligned with FarCom 300 Friendly Fire -43 Cogmind --------- Core Integrity 379/1000 Matter 545/550 Energy 70/100 System Corruption 4% Temperature Cool (0) Movement Core (100) Ox1 Location -5/Upper Caves Parts ------- > --- POWER (2) -------- (None) > --- PROPULSION (6) --- (None) > --- UTILITY (8) ------ Matter Compressor Improved Signal Interpreter > --- WEAPON (2) ------- (None) > --- INVENTORY (5) ---- Light Angular Momentum Engine Carbon-fiber Leg Peak State ------------ > --- POWER ------------ Particle Reactor Particle Reactor > --- PROPULSION ------- Gravmag Array Gravmag Array Gravmag Array > --- UTILITY ---------- Improved Heat Sink Improved Heat Sink Matter Compressor Improved Sensor Array Improved Signal Interpreter Improved Transmission Jammer Improved Light Armor Plating Improved Light Armor Plating > --- WEAPON ----------- Heavy Machine Gun Long-range Missile Launcher > --- INVENTORY -------- Heavy Laser Gatling Laser Mini Assault Cannon Heavy Missile Launcher [Rating: 86] Favorites ----------- Power Deuterium Engine Engine Deuterium Engine Power Core Light Nuclear Core Reactor Particle Reactor Propulsion Armored Treads Treads Armored Treads Leg Aluminum Leg Hover Unit Gravmag Array Utility Improved Heat Sink Device Improved Heat Sink Storage Matter Compressor Processor Improved Signal Interpreter Protection Improved Light Armor Plating Weapon Mini Assault Cannon Energy Gun EM Pulse Gun Energy Cannon Cooled Particle Cannon Ballistic Gun Precision Assault Rifle Ballistic Cannon Mini Assault Cannon Launcher Long-range Missile Launcher Build | -11 -10 -10 -9 -9 -9 -8 -8 -7 -7 -7 -6 -5 -5 -5 -5 -5 ------- Run | Jun Mat Min Mat Min Exi Min Mat Fac Gar Fac Fac Fac Was Fac Upp Upp Slots Evolved 11 | . 1 . 2 . . . 2 2 . . 2 2 . . . . Power 1 | . . . . . . . . 1 . . . . . . . . Propulsion 4 | . . . . . . . . . . . 2 2 . . . . Utility 6 | . 1 . 2 . . . 2 1 . . . . . . . . Weapon . | . . . . . . . . . . . . . . . . . Parts Attached 84 | 7 1 . 2 . . . 8 12 1 12 22 1 2 7 7 2 Power 15 | 1 . . . . . . 1 3 . 3 4 . 1 2 . . Engine 4 | 1 . . . . . . 1 2 . . . . . . . . Core 7 | . . . . . . . . 1 . 3 2 . 1 . . . Reactor 4 | . . . . . . . . . . . 2 . . 2 . . Propulsion 13 | 2 . . . . . . 1 2 . 1 6 1 . . . . Treads 4 | . . . . . . . . 2 . 1 1 . . . . . Leg 6 | 2 . . . . . . 1 . . . 3 . . . . . Wheel . | . . . . . . . . . . . . . . . . . Hover 3 | . . . . . . . . . . . 2 1 . . . . Flight . | . . . . . . . . . . . . . . . . . Utility 38 | 2 1 . 2 . . . 4 5 1 7 10 . . 3 3 . Device 16 | . . . 2 . . . 4 2 . 2 3 . . 1 2 . Storage 3 | . . . . . . . . . . . 2 . . . 1 . Processor 4 | . 1 . . . . . . . . 1 2 . . . . . Hackware . | . . . . . . . . . . . . . . . . . Protection 15 | 2 . . . . . . . 3 1 4 3 . . 2 . . Artifact . | . . . . . . . . . . . . . . . . . Weapon 18 | 2 . . . . . . 2 2 . 1 2 . 1 2 4 2 Energy Gun 7 | 1 . . . . . . 1 . . . 1 . . . 3 1 Energy Cannon 1 | . . . . . . . . . . 1 . . . . . . Ballistic Gun 4 | 1 . . . . . . 1 1 . . 1 . . . . . Ballistic Cannon 2 | . . . . . . . . 1 . . . . . . . 1 Launcher 4 | . . . . . . . . . . . . . 1 2 1 . Special Weapon . | . . . . . . . . . . . . . . . . . Impact Weapon . | . . . . . . . . . . . . . . . . . Slashing Weapon . | . . . . . . . . . . . . . . . . . Piercing Weapon . | . . . . . . . . . . . . . . . . . Special Melee Weapon . | . . . . . . . . . . . . . . . . . Unidentified Prototypes 7 | . . . 2 . . . 2 2 . 1 . . . . . . Parts Lost 43 | . . . 1 . . 2 . 1 3 6 12 . 1 4 3 10 Power 6 | . . . . . . . . . . 2 3 . . . . 1 Propulsion 5 | . . . . . . . . . . 1 2 . . . . 2 Utility 23 | . . . 1 . . 1 . 1 3 2 6 . 1 4 . 4 Weapon 9 | . . . . . . 1 . . . 1 1 . . . 3 3 Highest Loss Streak 11 | . . . 1 . . 2 . 1 2 4 11 . 1 2 5 9 To Critical Strikes . | . . . . . . . . . . . . . . . . . Average Slot Usage (%) 86 | . 100 100 90 90 90 85 82 90 88 90 79 77 79 77 67 67 Engine 8 | . 12 12 10 10 10 10 8 13 14 9 . . . . . . Core 2 | . . . . . . . . . . 3 6 5 10 4 . . Reactor 1 | . . . . . . . . . . . 4 . . 6 11 10 Treads 6 | . . . . . . . . 9 14 14 2 . . . . . Leg 6 | . 25 25 20 20 20 20 15 4 . . 7 . . . . . Hover 2 | . . . . . . . . . . . 2 16 16 16 12 10 Device 25 | . . . 10 20 20 20 34 39 37 27 14 16 16 19 19 18 Storage 1 | . . . . . . . . . . . 1 5 5 5 7 11 Processor 4 | . 12 12 10 10 10 7 . . . 1 8 11 8 5 5 5 Protection 12 | . 25 25 19 10 10 10 8 8 8 18 16 11 11 7 . . Energy Gun 3 | . 12 12 10 10 10 7 6 1 . . 1 5 . . 10 10 Energy Cannon 2 | . . . . . . . . . . 6 4 . . . . . Ballistic Gun 4 | . 12 12 10 10 10 10 8 7 7 . 1 5 5 5 . . Ballistic Cannon 3 | . . . . . . . . 5 7 7 4 . . . . . Naked Turns . | . . . . . . . . . . . . . . . . . Heaviest Build 204 | 15 15 15 23 21 21 21 37 55 55 55 204 28 39 64 55 54 Greatest Support 60 | 20 20 20 20 20 20 20 20 40 40 40 60 60 60 60 60 40 Greatest Overweight (x) 17 | 4 . . 1 1 1 1 3 2 1 1 17 . . 1 1 1 Average Overweight (x) . | . . . 1 1 1 . 1 1 . . . . . . . 1 Largest Inventory Capacity 30 | 5 5 5 5 5 5 5 5 5 5 5 30 5 5 5 5 5 Average Capacity 5 | 5 5 5 5 5 5 5 5 5 5 5 5 5 5 5 5 5 Most Carried 5 | 4 . 4 2 1 2 3 5 5 5 5 5 3 4 5 4 4 Average Carried 3 | . . 2 1 1 1 2 2 4 4 3 2 3 3 4 2 2 Final Capacity 5 | 5 5 5 5 5 5 5 5 5 5 5 5 5 5 5 5 5 Final Carried 5 | 1 . 4 1 1 2 2 4 5 4 3 5 3 4 4 3 2 Class Distribution -------------------- 60% | Hacker-Skirmisher 27% | Hacker-Mutant 5% | Hacker-Scout 3% | Scavenger-Mutant 3% | Scavenger-Scout Dominant Class ---------------- Hacker-Mutant | -10/Materials Hacker-Mutant | -10/Mines Hacker-Mutant | -9/Materials Hacker-Mutant | -9/Mines Hacker-Mutant | -9/Exiles Hacker-Mutant | -8/Mines Hacker-Skirmisher | -8/Materials Hacker-Skirmisher | -7/Factory Hacker-Skirmisher | -7/Garrison Hacker-Skirmisher | -7/Factory Hacker-Mutant | -6/Factory Scavenger-Scout | -5/Factory Hacker-Scout | -5/Waste Hacker-Scout | -5/Factory Scavenger-Mutant | -5/Upper Caves Hacker-Mutant | -5/Upper Caves Resources | -11 -10 -10 -9 -9 -9 -8 -8 -7 -7 -7 -6 -5 -5 -5 -5 -5 ----------- Run | Jun Mat Min Mat Min Exi Min Mat Fac Gar Fac Fac Fac Was Fac Upp Upp Matter Collected 3842 | 170 . 102 53 72 . 36 196 440 333 573 567 87 420 310 413 70 Remotely 1503 | . . . . . . . 196 440 333 534 . . . . . . Salvage Created 6565 | . 243 . 338 . . . 540 757 477 1620 936 . 472 888 134 160 Parts 359 | . 14 . 19 . . . 36 39 33 101 43 . . 60 8 6 Haulers Intercepted 5 | . . . . . . . 1 1 . 3 . . . . . . Recyclers Shooed 3 | . . . . . . . . . . 1 . . . 2 . . Parts Field Recycled . | . . . . . . . . . . . . . . . . . Retrieved Matter . | . . . . . . . . . . . . . . . . . Parts Self-Destructed . | . . . . . . . . . . . . . . . . . Prevented . | . . . . . . . . . . . . . . . . . Kills | -11 -10 -10 -9 -9 -9 -8 -8 -7 -7 -7 -6 -5 -5 -5 -5 -5 ------- Run | Jun Mat Min Mat Min Exi Min Mat Fac Gar Fac Fac Fac Was Fac Upp Upp Combat Hostiles Destroyed 129 | . 4 . 8 . . . 10 13 18 26 18 . 2 22 5 3 Guns 54 | . 3 . 7 . . . 10 7 6 . 4 . . 10 5 2 Cannons 57 | . . . . . . . . 5 12 26 14 . . . . . AOE 16 | . 1 . 1 . . . . . . . . . 2 12 . . Classes Destroyed 16 | . 2 . 3 . . . 2 3 1 2 . . 1 1 . 1 Worker 16 | . . . 1 . . . . . . 7 3 . . 5 . . Builder 4 | . . . . . . . . 1 . 2 . . . 1 . . Hauler 5 | . . . . . . . 1 1 . 3 . . . . . . Recycler 6 | . . . . . . . 1 1 . 1 1 . . 2 . . Mechanic 1 | . . . . . . . . . . 1 . . . . . . Operator 1 | . . . . . . . . . . 1 . . . . . . Watcher 14 | . 2 . . . . . 2 4 . 3 1 . . 2 . . Swarmer 37 | . . . 1 . . . 5 3 10 . 3 . . 10 4 1 Cutter 2 | . . . . . . . . . 2 . . . . . . . Grunt 44 | . 4 . 4 . . . 3 3 5 14 9 . . 2 . . Brawler 1 | . . . . . . . . . . . . . . 1 . . Duelist 1 | . . . . . . . . . . . . . . . . 1 Sentry 14 | . . . 3 . . . 2 1 1 3 1 . . 2 . 1 Hunter 8 | . . . . . . . . 1 . . 3 . . 3 1 . Programmer 20 | . . . . . . . . 5 . 9 2 . . 4 . . Compactor 2 | . . . . . . . . . . . . . 2 . . . Best Kill Streak 13 | . 3 . 5 . . . 5 6 6 13 7 . 2 6 4 2 Combat Bots Only 6 | . 2 . 4 . . . 3 4 6 4 6 . 2 4 4 2 Max Kills in Single Turn 7 | . 2 . 2 . . . 1 2 2 7 2 . 2 5 1 1 Gunslinging . | . . . . . . . . . . . . . . . . . Exploded 4 | . 1 . 1 . . . . . . . . . 2 4 . . Melee . | . . . . . . . . . . . . . . . . . Uniques/NPCs Destroyed . | . . . . . . . . . . . . . . . . . Combat | -11 -10 -10 -9 -9 -9 -8 -8 -7 -7 -7 -6 -5 -5 -5 -5 -5 -------- Run | Jun Mat Min Mat Min Exi Min Mat Fac Gar Fac Fac Fac Was Fac Upp Upp Damage Taken 7323 | . 76 . 308 9 . 169 265 546 496 1181 1983 3 224 994 167 902 Core 1393 | . 10 . 11 . . 11 14 34 30 85 577 3 74 79 20 445 Absorbed by Shields 41 | . . . . . . . . . 41 . . . . . . . Regen/Repaired (Parts) 129 | . . . . . . . 99 . . . . . 30 . . . Core Remaining (%) 82 | 100 . 96 . . . 94 97 . . 78 32 . . . . . Volleys Fired 402 | . 17 . 24 . . 10 46 44 31 71 65 . 6 69 9 10 Largest 2 | . 2 . 2 . . 2 2 2 2 2 2 . 2 2 2 2 Hottest 160 | . 60 . 60 . . 60 78 78 76 138 138 . 73 73 160 160 Shots Fired 690 | . 34 . 48 . . 16 75 88 62 133 96 . 13 93 15 17 Gun 405 | . 34 . 48 . . 16 75 61 31 5 28 . 7 69 14 17 Cannon 254 | . . . . . . . . 27 31 128 68 . . . . . Launcher 31 | . . . . . . . . . . . . . 6 24 1 . Special . | . . . . . . . . . . . . . . . . . Kinetic 447 | . 17 . 24 . . 10 46 71 62 76 64 . 7 69 1 . Thermal 165 | . . . . . . . 29 17 . 57 32 . . . 13 17 Explosive 31 | . . . . . . . . . . . . . 6 24 1 . Electromagnetic 47 | . 17 . 24 . . 6 . . . . . . . . . . Robot Hit Streak 26 | . 12 . 21 . . 13 12 14 18 19 23 . 5 26 15 14 Robot Miss Streak 3 | . 2 . 1 . . 1 2 2 2 2 2 . 1 1 2 3 Penetration Max . | . . . . . . . . . . . . . . . . . Secondary Targets 3 | . . . 1 . . . 1 . . . 1 . . . . . Max Gunslinging Chain 1 | . . . 1 . . . 1 . . . 1 . . . . . Shots Hit Robots 507 | . 24 . 41 . . 13 59 66 51 73 68 . 10 71 14 17 Core Hits 296 | . 9 . 15 . . 5 24 31 26 57 37 . 6 58 12 16 Critical Kills 1 | . . . . . . . . . . . 1 . . . . . Critical Parts Destroyed 1 | . . . . . . . . . . . 1 . . . . . Critical Strikes 12 | . . . 1 . . . . 2 1 3 5 . . . . . Burn 1 | . . . . . . . . 1 . . . . . . . . Destroy 2 | . . . . . . . . . . . 2 . . . . . Blast 8 | . . . . . . . . 1 1 3 3 . . . . . Corrupt 1 | . . . 1 . . . . . . . . . . . . . Melee Attacks . | . . . . . . . . . . . . . . . . . Impact . | . . . . . . . . . . . . . . . . . Slashing . | . . . . . . . . . . . . . . . . . Piercing . | . . . . . . . . . . . . . . . . . Sneak Attacks . | . . . . . . . . . . . . . . . . . Combat Hostiles . | . . . . . . . . . . . . . . . . . Follow-up Attacks . | . . . . . . . . . . . . . . . . . Damage Inflicted 17666 | . 394 4 659 . . 171 873 1490 1198 4393 2182 6 1497 3975 375 449 Guns 5969 | . 311 . 480 . . 171 873 976 557 . 449 . 133 1300 270 449 Cannons 6309 | . . . . . . . . 514 641 3428 1726 . . . . . Explosions 5371 | . 83 . 179 . . . . . . 965 . . 1364 2675 105 . Melee . | . . . . . . . . . . . . . . . . . Ramming 17 | . . 4 . . . . . . . . 7 6 . . . . Kinetic 7317 | . 153 . 225 . . 100 574 1193 1198 1090 1336 . 133 1300 15 . Thermal 5550 | . 83 . 179 . . . 299 297 . 2847 839 . . 302 255 449 Explosive 3842 | . . . . . . . . . . . . . 1364 2373 105 . Electromagnetic 940 | . 158 . 255 . . 71 . . . 456 . . . . . . Impact . | . . . . . . . . . . . . . . . . . Slashing . | . . . . . . . . . . . . . . . . . Piercing . | . . . . . . . . . . . . . . . . . Highest Corruption 7 | . . . . . . . 1 . . 7 . 1 3 4 4 4 Average Corruption 3 | . . . . . . . 1 . . 3 . 1 1 3 4 4 Corruption Purged . | . . . . . . . . . . . . . . . . . Corruption Blocked . | . . . . . . . . . . . . . . . . . Effects 87 | . . . . . . . . . . 51 . 1 2 15 13 5 Message Errors 23 | . . . . . . . . . . 10 . . . 8 4 1 Matter Fused 22 | . . . . . . . . . . 13 . 1 . 3 3 2 Heat Flow Errors 11 | . . . . . . . . . . 9 . . . . 1 1 Energy Discharges 16 | . . . . . . . . . . 10 . . 1 3 1 1 Parts Rejected 1 | . . . . . . . . . . . . . . . 1 . Parts Fused 1 | . . . . . . . . . . . . . . 1 . . Data Loss (minor) 7 | . . . . . . . . . . 5 . . . . 2 . Data Loss (major) 1 | . . . . . . . . . . 1 . . . . . . Misfires 1 | . . . . . . . . . . . . . 1 . . . Alerts 4 | . . . . . . . . . . 3 . . . . 1 . Overload Shots 72 | . . . . . . . . . . 57 15 . . . . . Effects 7 | . . . . . . . . . . 3 4 . . . . . Energy Bleed 4 | . . . . . . . . . . 2 2 . . . . . Heat Surge 3 | . . . . . . . . . . 1 2 . . . . . Overflow Damage 695 | . . . . . . . . 6 2 528 51 . . 108 . . Projectiles 426 | . . . . . . . . 6 2 367 51 . . . . . Explosions 269 | . . . . . . . . . . 161 . . . 108 . . Melee . | . . . . . . . . . . . . . . . . . Knockbacks 23 | . . . . . . . . 2 2 8 11 . . . . . Impact . | . . . . . . . . . . . . . . . . . Kinetic 22 | . . . . . . . . 2 2 8 10 . . . . . Secondary 1 | . . . . . . . . . . . 1 . . . . . Self-Inflicted Damage 152 | . . . 112 . . . . . . 37 . 3 . . . . Shots 3 | . . . 2 . . . . . . 1 . . . . . . Rammed 1 | . . . . . . . . . . . . 1 . . . . Targets Rammed 3 | . . 1 . . . . . . . . 1 1 . . . . Kicked 2 | . . 1 . . . . . . . . 1 . . . . . Crushed . | . . . . . . . . . . . . . . . . . Highest Temperature 601 | . 147 . 105 . . 76 114 15 29 517 601 . . . 258 354 Average Temperature 137 | . 56 . 29 . . 41 57 7 9 141 246 . . . 99 108 Received Heat Transfer 2535 | . 75 . 105 . . 153 72 123 234 393 921 . . 132 . 327 Effects 37 | . . . . . . . . . . 12 24 . . . . 1 Shutdowns 9 | . . . . . . . . . . 4 4 . . . . 1 Energy Bleed 5 | . . . . . . . . . . 4 1 . . . . . Interference 11 | . . . . . . . . . . . 11 . . . . . Matter Decay 1 | . . . . . . . . . . . 1 . . . . . Short Circuit 3 | . . . . . . . . . . 1 2 . . . . . Damage (minor) 3 | . . . . . . . . . . . 3 . . . . . Damage (major) 4 | . . . . . . . . . . 3 1 . . . . . Damage (core) 1 | . . . . . . . . . . . 1 . . . . . Siege Activations . | . . . . . . . . . . . . . . . . . Robots Corrupted . | . . . . . . . . . . . . . . . . . Combat Hostiles . | . . . . . . . . . . . . . . . . . Parts Fried . | . . . . . . . . . . . . . . . . . Impact Corruptions . | . . . . . . . . . . . . . . . . . Robots Melted 2 | . . . . . . . . 1 . . . . . . . 1 Combat Hostiles 2 | . . . . . . . . 1 . . . . . . . 1 Parts Melted 14 | . . . 1 . . . . 3 . 3 2 . . . 3 2 Heat Transferred 6811 | . 100 . 150 . . . 814 629 . 2350 994 . . 200 575 999 Parts Sabotaged . | . . . . . . . . . . . . . . . . . Parts Stolen . | . . . . . . . . . . . . . . . . . Parts Stripped . | . . . . . . . . . . . . . . . . . Power Chain Reactions 4 | . 1 . 1 . . . . . . 2 . . . . . . Missiles Intercepted . | . . . . . . . . . . . . . . . . . Alert | -11 -10 -10 -9 -9 -9 -8 -8 -7 -7 -7 -6 -5 -5 -5 -5 -5 ------- Run | Jun Mat Min Mat Min Exi Min Mat Fac Gar Fac Fac Fac Was Fac Upp Upp Peak Influence 1261 | . 127 34 341 11 . 4 183 158 385 230 239 53 110 1261 . . Initial 150 | . . 34 . 11 . . . 49 . 150 . 25 12 54 . . Average 104 | . 65 32 146 6 . . 81 44 123 78 55 28 77 646 . . Maximum Alert Level 4 | . . . 1 . . . . . 1 1 1 . . 4 . . Low Security (%) 88 | 100 100 100 84 100 . 100 100 100 77 93 90 100 100 11 . . Level 1 5 | . . . 15 . . . . . 22 6 9 . . 14 . . Level 2 2 | . . . . . . . . . . . . . . 30 . . Level 3 2 | . . . . . . . . . . . . . . 32 . . Level 4 . | . . . . . . . . . . . . . . 11 . . Level 5 . | . . . . . . . . . . . . . . . . . High Security . | . . . . . . . . . . . . . . . . . Max Security . | . . . . . . . . . . . . . . . . . Squads Dispatched 37 | . . . 2 . . . . 7 . 15 3 1 . 8 . 1 Investigation 6 | . . . . . . . . . . 3 1 1 . 1 . . Extermination 15 | . . . . . . . . 5 . 7 1 . . 2 . . Reinforcement 10 | . . . 2 . . . . 2 . 2 1 . . 3 . . Assault 3 | . . . . . . . . . . . . . . 2 . 1 Garrison 3 | . . . . . . . . . . 3 . . . . . . Intercept . | . . . . . . . . . . . . . . . . . Searches Triggered . | . . . . . . . . . . . . . . . . . Construction Impeded 1 | . . . . . . . . . . . . . . 1 . . Haulers Reinforced 1 | . . . . . . . . . . 1 . . . . . . Active Scanning Responses . | . . . . . . . . . . . . . . . . . Cargo Convoy Interrupts . | . . . . . . . . . . . . . . . . . Stealth | -11 -10 -10 -9 -9 -9 -8 -8 -7 -7 -7 -6 -5 -5 -5 -5 -5 --------- Run | Jun Mat Min Mat Min Exi Min Mat Fac Gar Fac Fac Fac Was Fac Upp Upp Distress Signals 11 | . . . 3 . . . 4 1 . 2 . . . 1 . . Communications Jammed 20 | . . . . . . . . . . . . . . 19 . 1 Distress Signals 19 | . . . . . . . . . . . . . . 18 . 1 Times Spotted 218 | . 6 . 18 2 . 2 19 18 18 31 31 2 6 44 6 15 Peak Tracking Total 8 | . 2 . 4 2 . 2 5 4 3 3 8 1 5 6 4 7 Tactical Retreats 5 | . . . . . . . . . . . . . . 1 . 4 Traps | -11 -10 -10 -9 -9 -9 -8 -8 -7 -7 -7 -6 -5 -5 -5 -5 -5 ------- Run | Jun Mat Min Mat Min Exi Min Mat Fac Gar Fac Fac Fac Was Fac Upp Upp Traps Triggered 15 | . . . . . . . 3 . 4 5 1 1 . 1 . . Indirectly . | . . . . . . . . . . . . . . . . . Trap Hack Attempts . | . . . . . . . . . . . . . . . . . Triggered . | . . . . . . . . . . . . . . . . . Disarmed . | . . . . . . . . . . . . . . . . . Reprogrammed . | . . . . . . . . . . . . . . . . . Reused . | . . . . . . . . . . . . . . . . . Traps Extracted . | . . . . . . . . . . . . . . . . . Installed . | . . . . . . . . . . . . . . . . . Triggered . | . . . . . . . . . . . . . . . . . Machines | -11 -10 -10 -9 -9 -9 -8 -8 -7 -7 -7 -6 -5 -5 -5 -5 -5 ---------- Run | Jun Mat Min Mat Min Exi Min Mat Fac Gar Fac Fac Fac Was Fac Upp Upp Machines Disabled 39 | . 1 . 3 . . 1 . . . 24 . . . 10 . . Max in Single Turn 6 | . 1 . 2 . . 1 . . . 6 . . . 2 . . Machines Repaired . | . . . . . . . . . . . . . . . . . Machines Sabotaged . | . . . . . . . . . . . . . . . . . Overloaded Fab Kills . | . . . . . . . . . . . . . . . . . Hacking | -11 -10 -10 -9 -9 -9 -8 -8 -7 -7 -7 -6 -5 -5 -5 -5 -5 --------- Run | Jun Mat Min Mat Min Exi Min Mat Fac Gar Fac Fac Fac Was Fac Upp Upp Machines Accessed 31 | . 3 1 2 . . . 4 3 1 6 5 2 . 4 . . Terminals 22 | . 3 . 2 . . . 2 1 1 6 3 2 . 2 . . Fabricators 4 | . . . . . . . . . . . 2 . . 2 . . Repair Stations 2 | . . . . . . . 2 . . . . . . . . . Recycling Units . | . . . . . . . . . . . . . . . . . Scanalyzers 1 | . . . . . . . . 1 . . . . . . . . Garrison Access 1 | . . . . . . . . 1 . . . . . . . . Total Hacks 70 | . 6 1 6 . . . 10 4 2 17 11 6 . 7 . . Successful 45 | . 5 1 4 . . . 9 2 1 5 9 5 . 4 . . Failed 25 | . 1 . 2 . . . 1 2 1 12 2 1 . 3 . . Catastrophic 7 | . . . . . . . . . . 7 . . . . . . Database Lockouts . | . . . . . . . . . . . . . . . . . Manual 44 | . 6 . 6 . 1 . 5 . . 14 4 5 . 3 . . Terminals 52 | . 6 . 6 . . . 4 1 2 17 6 6 . 4 . . Fabricators 8 | . . . . . . . . . . . 5 . . 3 . . Repair Stations 6 | . . . . . . . 6 . . . . . . . . . Recycling Units . | . . . . . . . . . . . . . . . . . Scanalyzers 2 | . . . . . . . . 2 . . . . . . . . Garrison Access 1 | . . . . . . . . 1 . . . . . . . . Terminal Hacks 19 | . 2 1 1 . . . 1 1 1 3 4 3 . 2 . . Record 1 | . . . . . . . . . . . . 1 . . . . Robot Analysis 3 | . . . . . . . . . . 1 1 . . 1 . . Open Door 1 | . . 1 . . . . . . . . . . . . . . Open DSF 1 | . . . . . . . . 1 . . . . . . . . Level Access Points 1 | . . . . . . . . . . . 1 . . . . . Branch Access Points 3 | . 1 . . . . . . . . . . 1 . 1 . . Terminal Index 5 | . 1 . 1 . . . 1 . . 1 . 1 . . . . Locate Traps 1 | . . . . . . . . . . . 1 . . . . . Recall Extermination 1 | . . . . . . . . . . 1 . . . . . . Recall Reinforcements 1 | . . . . . . . . . . . 1 . . . . . Garrison Registry 1 | . . . . . . . . . 1 . . . . . . . Fabricator Hacks 7 | . . . . . . . . . . . 5 . . 2 . . Network Status 3 | . . . . . . . . . . . 3 . . . . . Build 4 | . . . . . . . . . . . 2 . . 2 . . Repair Station Hacks 5 | . . . . . . . 5 . . . . . . . . . Scan Component 2 | . . . . . . . 2 . . . . . . . . . Repair 2 | . . . . . . . 2 . . . . . . . . . Refit 1 | . . . . . . . 1 . . . . . . . . . Recycling Unit Hacks . | . . . . . . . . . . . . . . . . . Scanalyzer . | . . . . . . . . . . . . . . . . . Garrison Access Hacks 1 | . . . . . . . . 1 . . . . . . . . Unlock Access 1 | . . . . . . . . 1 . . . . . . . . Unauthorized Hacks 13 | . 3 . 3 . . . 3 . . 2 . 2 . . . . Terminals 13 | . 3 . 3 . . . 3 . . 2 . 2 . . . . Assimilate 2 | . . . . . . . . . . 1 . 1 . . . . Botnet 7 | . 2 . 2 . . . 2 . . . . 1 . . . . Operators 4 | . 1 . 1 . . . 1 . . 1 . . . . . . Fabricators . | . . . . . . . . . . . . . . . . . Repair Stations . | . . . . . . . . . . . . . . . . . Recycling Units . | . . . . . . . . . . . . . . . . . Scanalyzers . | . . . . . . . . . . . . . . . . . Garrison Access . | . . . . . . . . . . . . . . . . . Data Cores Recovered 1 | . . . . . . . . . . 1 . . . . . . Used . | . . . . . . . . . . . . . . . . . Hacking Detections 19 | . 1 . 2 . . . 3 . 1 4 3 2 . 3 . . Full Trace Events 7 | . . . . . . . 1 . . 3 1 1 . 1 . . Feedback Events 2 | . . . . . . . . . . 1 . 1 . . . . Corruption 2 | . . . . . . . . . . 1 . 1 . . . . Feedback Blocked . | . . . . . . . . . . . . . . . . . Robot Schematics Acquired . | . . . . . . . . . . . . . . . . . Robots Built . | . . . . . . . . . . . . . . . . . Authchips . | . . . . . . . . . . . . . . . . . Time . | . . . . . . . . . . . . . . . . . Total Robot Build Rating . | . . . . . . . . . . . . . . . . . Part Schematics Acquired . | . . . . . . . . . . . . . . . . . Parts Built 6 | . . . . . . . . . . . 4 . . 2 . . Authchips . | . . . . . . . . . . . . . . . . . Time 281 | . . . . . . . . . . . 175 . . 106 . . Total Part Build Rating 44 | . . . . . . . . . . . 28 . . 16 . . Parts Repaired 2 | . . . . . . . 2 . . . . . . . . . Time 134 | . . . . . . . 134 . . . . . . . . . Parts Recycled . | . . . . . . . . . . . . . . . . . Recycled Matter . | . . . . . . . . . . . . . . . . . Retrieved Matter . | . . . . . . . . . . . . . . . . . Retrieved Components . | . . . . . . . . . . . . . . . . . Parts Scanalyzed . | . . . . . . . . . . . . . . . . . Part Schematics Acquired . | . . . . . . . . . . . . . . . . . Parts Damaged . | . . . . . . . . . . . . . . . . . Bothacking | -11 -10 -10 -9 -9 -9 -8 -8 -7 -7 -7 -6 -5 -5 -5 -5 -5 ------------ Run | Jun Mat Min Mat Min Exi Min Mat Fac Gar Fac Fac Fac Was Fac Upp Upp Used RIF Installer . | . . . . . . . . . . . . . . . . . Robots Hacked . | . . . . . . . . . . . . . . . . . Non-combat . | . . . . . . . . . . . . . . . . . Combat . | . . . . . . . . . . . . . . . . . Robot Hacks Applied . | . . . . . . . . . . . . . . . . . Relay Couplers Released 3 | . . . . . . . . . . . 3 . . . . . Programmers 3 | . . . . . . . . . . . 3 . . . . . Fabnet Peak Effective % . | . . . . . . . . . . . . . . . . . Robots Rewired . | . . . . . . . . . . . . . . . . . Allies Hacked . | . . . . . . . . . . . . . . . . . Hacks Repelled . | . . . . . . . . . . . . . . . . . Allies | -11 -10 -10 -9 -9 -9 -8 -8 -7 -7 -7 -6 -5 -5 -5 -5 -5 -------- Run | Jun Mat Min Mat Min Exi Min Mat Fac Gar Fac Fac Fac Was Fac Upp Upp Total Allies 25 | . . 5 . . . . . . . 1 . . 19 . . . Largest Group 19 | . . 5 5 . . . . . . 1 . . 19 6 . . Highest-Rated Group 702 | . . 89 89 . . . . . . 10 . . 702 175 . . Highest-Rated Ally 50 | . . 31 31 . . . . . . 10 . . 50 50 . . Total Orders 2 | . . . . 2 . . . . . . . . . . . . RETURN 2 | . . . . 2 . . . . . . . . . . . . Ally Attacks 184 | . . . 30 2 . 2 . 7 . . . . 71 72 . . Total Damage 5829 | . . . 176 . . . . . . . . . 2622 3031 . . Kills 30 | . . . 4 . . . . . . . . . 5 21 . . Allies Corrupted . | . . . . . . . . . . . . . . . . . Allies Melted . | . . . . . . . . . . . . . . . . . Intel | -11 -10 -10 -9 -9 -9 -8 -8 -7 -7 -7 -6 -5 -5 -5 -5 -5 ------- Run | Jun Mat Min Mat Min Exi Min Mat Fac Gar Fac Fac Fac Was Fac Upp Upp Robot Analysis Total 3 | . . . . . . . . . . 1 1 . . 1 . . Derelict Logs Recovered 4 | . . 2 . 1 . . . . . . . . . . 1 . Drone Launches 15 | . . . 2 4 . 2 . 7 . . . . . . . . Drone Recoveries 2 | . . . . 2 . . . . . . . . . . . . Exploration | -11 -10 -10 -9 -9 -9 -8 -8 -7 -7 -7 -6 -5 -5 -5 -5 -5 ------------- Run | Jun Mat Min Mat Min Exi Min Mat Fac Gar Fac Fac Fac Was Fac Upp Upp Turns Passed 12494 | 66 169 423 401 646 418 121 689 2558 676 3253 1236 90 170 764 455 359 Spaces Moved 6447 | 39 94 324 173 341 220 57 217 906 249 1222 579 133 282 830 489 292 Core 19 | 15 . . . . . . . . . . 4 . . . . . Treads 2162 | . . . . . . . . 643 249 1222 48 . . . . . Legs 1954 | 24 94 324 173 341 220 57 217 263 . . 241 . . . . . Wheels . | . . . . . . . . . . . . . . . . . Hover 2312 | . . . . . . . . . . . 286 133 282 830 489 292 Flight . | . . . . . . . . . . . . . . . . . Fastest Speed 50 | 50 120 120 190 190 190 120 190 250 170 170 56 52 52 52 52 106 Average Speed 161 | 115 120 120 190 190 190 165 191 252 230 244 120 52 52 60 85 106 Slowest Speed 900 | 250 120 120 190 190 190 190 330 260 250 250 900 52 52 102 106 106 Overloaded Moves . | . . . . . . . . . . . . . . . . . Propulsion Burnouts . | . . . . . . . . . . . . . . . . . Robots Hopped . | . . . . . . . . . . . . . . . . . Cave-ins Triggered 3 | . . . . . . . . . . 2 . . 1 . . . Exploration Rate (%) 40 | 5 26 76 23 74 63 29 29 32 40 35 18 6 88 33 75 41 Regions Visited 16 Branch Regions 6 Pre-discovered Areas 2 | . . . . 2 . . . . . . . . . . . . Known Exits Taken 13 | 1 1 1 1 1 1 1 1 1 . 1 1 . . 1 1 . Unknown Exits Taken . | . . . . . . . . . . . . . . . . . Scrap Searched 5 | . . 2 . 1 . . . . . . . . . . 1 1 Spaces Dug 15 | . . . . . . . . . . 14 1 . . . . . Terrain Destroyed 349 | . 2 . 40 . . . . 2 . 63 8 . 42 176 16 . Melee . | . . . . . . . . . . . . . . . . . Projectile 31 | . . . . . . . . 2 . 21 8 . . . . . AOE 318 | . 2 . 40 . . . . . . 42 . . 42 176 16 . Terrain Rammed . | . . . . . . . . . . . . . . . . . Walls Destroyed . | . . . . . . . . . . . . . . . . . Machines Disabled . | . . . . . . . . . . . . . . . . . Actions | -11 -10 -10 -9 -9 -9 -8 -8 -7 -7 -7 -6 -5 -5 -5 -5 -5 --------- Run | Jun Mat Min Mat Min Exi Min Mat Fac Gar Fac Fac Fac Was Fac Upp Upp Total 7817 | 60 116 358 198 340 220 68 415 1090 289 1361 1028 154 291 999 509 321 Wait 771 | 7 5 31 . . . . 136 100 3 43 327 19 . 84 . 16 Move 6432 | 38 93 323 172 340 219 56 216 906 248 1221 578 133 280 829 488 292 Hop . | . . . . . . . . . . . . . . . . . Pick Up 85 | 8 . 3 . . 1 1 8 15 . 11 23 . 2 7 5 1 Fast Attach . | . . . . . . . . . . . . . . . . . Attach 70 | 7 1 . 2 . . . 5 8 1 10 21 1 1 5 6 2 Detach 3 | . . . . . . . . 2 . . 1 . . . . . Swap 14 | . . . . . . . 3 4 . 2 1 . 1 2 1 . Drop 30 | . . . . . . 1 1 11 . 3 11 . . 3 . . Fire 402 | . 17 . 24 . . 10 46 44 31 71 65 . 6 69 9 10 Melee . | . . . . . . . . . . . . . . . . . Ram 1 | . . . . . . . . . . . . 1 . . . . Kick 2 | . . 1 . . . . . . . . 1 . . . . . Crush . | . . . . . . . . . . . . . . . . . Escape Stasis 7 | . . . . . . . . . 6 . . . 1 . . . Rewire . | . . . . . . . . . . . . . . . . . Trap . | . . . . . . . . . . . . . . . . . Miscellaneous . | . . . . . . . . . . . . . . . . . Route ------- -11/Junkyard -10/Materials (discovered 2 exits: *Min x2) -10/Mines -9/Materials (discovered 3 exits: *Min / *Sto x2) -9/Mines -9/Exiles -8/Mines -8/Materials -7/Factory (discovered 3 exits: *Low x2 / Gar) -7/Garrison (discovered 3 exits: *Fac x3) -7/Factory (discovered 2 exits: *Fac / *Low) -6/Factory (discovered 4 exits: *Fac x4) -5/Factory (discovered 3 exits: *Fac / Upp x2) -5/Waste -5/Factory (discovered 3 exits: *Fac / *Upp x2) -5/Upper Caves -5/Upper Caves History --------- Turn | Location | Event 2 | -11/Junkyard | Met Revision 17 39 | -11/Junkyard | Identified exit to Materials 39 | -11/Junkyard | Discovered exit to Materials (range 14) 67 | -11/Junkyard | Entered Materials 67 | -10/Materials | Evolved 1 slot: Utility x1 196 | -10/Materials | Identified exit to Mines 236 | -10/Materials | Entered Mines 241 | -10/Mines | Assisted by bots powering up and referring to "LRC-V3" 270 | -10/Mines | Found a damaged Exp. Sensor Array with a note attached 272 | -10/Mines | Found Prototype Device 316 | -10/Mines | Build established: Hacker-Mutant 499 | -10/Mines | Found the Drone Emporium 504 | -10/Mines | Found Prototype Device 536 | -10/Mines | Learned location of 1 exit from Materials 650 | -10/Mines | Identified exit to Materials 650 | -10/Mines | Discovered exit to Materials (range 7) 659 | -10/Mines | Entered Materials 659 | -9/Materials | Accompanied by 5 allies 659 | -9/Materials | Evolved 2 slots: Utility x2 659 | -9/Materials | Identified Bomb Drone Bay 660 | -9/Materials | Identified exit to Storage 661 | -9/Materials | Identified exit to Mines 664 | -9/Materials | Led the pair of lost Derelicts to an unsafe place 910 | -9/Materials | Discovered exit to Storage (range 11) 1046 | -9/Materials | Identified Exp. Sensor Array 1060 | -9/Materials | Entered Mines 1368 | -9/Mines | Learned location of Storage (-9) 1699 | -9/Mines | Deemed a non-threat by the Exiles lab entrance 1699 | -9/Mines | Identified exit to Exiles 1699 | -9/Mines | Discovered exit to Exiles (range 5) 1706 | -9/Mines | Entered Exiles 1752 | -9/Exiles | Met 8R-AWN 1784 | -9/Exiles | Met EX-HEX 1836 | -9/Exiles | Met EX-BIN 1860 | -9/Exiles | Aligned with FarCom system 1862 | -9/Exiles | Given EX-Vault access code 1910 | -9/Exiles | Opened EX-Vault 1919 | -9/Exiles | Found Prototype Device 1958 | -9/Exiles | Warned to stay clear of 0b10 Research branches 2017 | -9/Exiles | Met EX-DEC 2101 | -9/Exiles | Identified exit to Mines 2101 | -9/Exiles | Discovered exit to Mines (range 14) 2124 | -9/Exiles | Left Exiles lab with Cloak of Protection 2124 | -9/Exiles | Entered Mines 2225 | -8/Mines | Identified exit to Materials 2225 | -8/Mines | Discovered exit to Materials (range 15) 2245 | -8/Mines | Entered Materials 2245 | -8/Materials | Evolved 2 slots: Utility x2 2245 | -8/Materials | Identified Cloak of Protection 2378 | -8/Materials | Repaired Exp. Sensor Array 2687 | -8/Materials | Build established: Hacker-Skirmisher 2792 | -8/Materials | Identified exit to Factory 2792 | -8/Materials | Discovered exit to Factory (range 15) 2867 | -8/Materials | Repaired Aluminum Leg 2934 | -8/Materials | Entered Factory 2934 | -7/Factory | Evolved 2 slots: Power x1, Utility x1 3080 | -7/Factory | Identified exit to DSF 3913 | -7/Factory | Identified exit to Lower Caves 3913 | -7/Factory | Discovered exit to Lower Caves (range 16) 4211 | -7/Factory | Discovered exit to Lower Caves (range 16) 5492 | -7/Factory | Identified exit to Garrison 5492 | -7/Factory | Entered Garrison 5554 | -7/Garrison | Triggered checkpoint 5794 | -7/Garrison | Triggered checkpoint 5812 | -7/Garrison | Triggered checkpoint 5880 | -7/Garrison | Triggered checkpoint 5880 | -7/Garrison | Triggered checkpoint 6022 | -7/Garrison | Identified exit to Factory 6022 | -7/Garrison | Discovered exit to Factory (range 10) 6102 | -7/Garrison | Discovered exit to Factory (range 83) 6102 | -7/Garrison | Discovered exit to Factory (range 45) 6102 | -7/Garrison | Discovered exit to Factory (range 15) 6168 | -7/Garrison | Entered Factory 6265 | -7/Factory | Crushed by falling debris 6878 | -7/Factory | Discovered exit to Lower Caves (range 10) 8555 | -7/Factory | Crushed by falling debris 8586 | -7/Factory | Lost 4 parts (1p1n2u) 9179 | -7/Factory | Garrison activated, responded to threat 9401 | -7/Factory | Identified exit to Factory 9401 | -7/Factory | Discovered exit to Factory (range 9) 9421 | -7/Factory | Entered another Factory area 9421 | -6/Factory | Evolved 2 slots: Propulsion x2 9618 | -6/Factory | Fabricated Myomer Leg (x2) 9829 | -6/Factory | Fabricated Antimatter Reactor (x2) 10160 | -6/Factory | Build established: Hacker-Mutant 10353 | -6/Factory | Core integrity fell below 50% 10372 | -6/Factory | Lost 11 parts (2p2n6u1w) 10603 | -6/Factory | Identified exit to Factory 10657 | -6/Factory | Entered another Factory area 10657 | -5/Factory | Evolved 2 slots: Propulsion x2 10678 | -5/Factory | Build established: Scavenger-Scout 10722 | -5/Factory | Identified exit to Factory 10722 | -5/Factory | Discovered exit to Factory (range 3) 10740 | -5/Factory | Identified exit to Upper Caves 10747 | -5/Factory | Sucked down chute 10747 | -5/Factory | Entered Waste 10760 | -5/Waste | Spotted C-40 Crusher 10761 | -5/Waste | Spotted C-40 Crusher 10771 | -5/Waste | Warlord forces began an assault 10786 | -5/Waste | Spotted C-40 Crusher 10786 | -5/Waste | Spotted C-40 Crusher 10792 | -5/Waste | Allies destroyed C-40 Crusher 10792 | -5/Waste | Spotted C-40 Crusher 10795 | -5/Waste | Allies destroyed C-40 Crusher 10796 | -5/Waste | Destroyed C-40 Crusher 10796 | -5/Waste | Destroyed C-40 Crusher 10801 | -5/Waste | Spotted C-40 Crusher 10801 | -5/Waste | Allies destroyed C-40 Crusher 10806 | -5/Waste | Allies destroyed C-40 Crusher 10831 | -5/Waste | Identified exit to Factory 10831 | -5/Waste | Discovered exit to Factory (range 11) 10838 | -5/Waste | Crushed by falling debris 10917 | -5/Waste | Entered Factory 10917 | -5/Factory | Accompanied by 6 allies 11093 | -5/Factory | Build established: Hacker-Scout 11210 | -5/Factory | P-70 Sage assimilated allied 52-LG2(s) 11217 | -5/Factory | First assault squad dispatched 11237 | -5/Factory | Fabricated Particle Reactor (x2) 11333 | -5/Factory | Spotted B-75 Beast 11353 | -5/Factory | Allies destroyed B-75 Beast 11559 | -5/Factory | Discovered exit to Factory (range 9) 11681 | -5/Factory | Entered Upper Caves 11732 | -5/Upper Caves | Lost 5 parts (2u3w) 11778 | -5/Upper Caves | Learned Factory stockpile data 12020 | -5/Upper Caves | Encountered a Warlord checkpoint 12050 | -5/Upper Caves | Identified exit to Upper Caves 12050 | -5/Upper Caves | Discovered exit to Upper Caves (range 13) 12136 | -5/Upper Caves | Entered another Upper Caves area 12232 | -5/Upper Caves | Build established: Scavenger-Mutant 12254 | -5/Upper Caves | Encountered a Warlord checkpoint 12282 | -5/Upper Caves | Spotted B-75 Beast 12408 | -5/Upper Caves | Attracted the attention of an 0b10 outpost 12491 | -5/Upper Caves | Core integrity fell below 50% 12495 | -5/Upper Caves | Self-destructed Last Messages --------------- 12471_ Particle Reactor destroyed. 12475_ L-41 Fighter destroyed. 12479_ M-28 Smith distress signal jammed. 12479_ Particle Reactor severed. 12481_ Gatling Laser destroyed. 12481_ Adv. Heat Sink destroyed. 12481_ Gravmag Array destroyed. 12483_ Gatling Laser severed. 12484_ Acquired Carbon-fiber Leg. 12484_ Gravmag Array destroyed. 12485_ Mni. Assault Cannon destroyed. 12487_ System corrupted: Energy discharge (-78). 12487_ M-28 Smith repairs L-41 Fighter. 12487_ Critical hit (Burn: +50). 12490_ Com. Battery destroyed. 12490_ Critical hit (Burn: +50). 12490_ Hvy. Laser destroyed. 12492_ M-28 Smith repairs L-41 Fighter. 12494_ Imp. Transmission Jammer severed. 12494_ Critical hit (Burn: +37). Map ----- +----------------------------------------------------+ | ???????????????????????????????????????????##### | | ???????????????????????????????????????????????## | | ????????????????????????????????????????????????## | | ?????????????????????????????????????????????????# | | ?????????????????????????????????????????????????? | | ?????????????????????????????????????????????????? | | ??????????????????? ?????????????????????????????? | | ??????????????????# ????????###++##??????????????? | | ?????????????????? ??????#??!% ??????????????? | | ?????????????????# ??????# ? = ??????????????? | | ????????????????# * ??????? ## ##?????????????? | | ????????????????# %#??????? ?????????????? | | ????????????????# [#???????? ??????????????? | | ????????????????# #????????? ??????????????? | | ????????????????# #?????????# ???????????##### | | ???????????????## ##????????? ????####???# | | ???????????????# ##??# ##### ###### ##??# | | ???????????????# #??# ## #### ### | | ???????????????# #????????# # # #### | | ???????????????# #?######## ### # # | | ??????????###?## #?## ### #?# # # | | ?????????## ## #?# ! ! ##?# #### ## | | ????????## ### g% ! *%!%#??# ???## #? | | ????????# ## #### m## !! #???### #? | | ????????# #??#ll### #####??????##? | | ????????##= / #??#@*#?### ##????????????? | | ?????????###### ####gg#???####"#????????????? | | ??????????????### g /#???????##????????????? | | ????????????????## ########?????????????????????? | | ?????????????????####????????????????????????????? | | ?????????????????????????????????????????????????? | | ?????????????????????????????????????????????????? | | ?????????????????????????????????????????????????? | | ?????????????????????????????????????????????????? | | ?????????????????????????????????????????????????? | | ?????????????????????????????????????????????????? | | ?????????????????????????????????????????????????? | | ?????????????????????????????????????????????????? | | ?????????????????????????????????????????????????? | | ?????????????????????????????????????????????????? | | ?????????????????????????????????????????????????? | | ?????????????????????????????????????????????????? | | ?????????????????????????????????????????????????? | | ?????????????????????????????????????????????????? | | ?????????????????????????????????????????????????? | | ?????????????????????????????????????????????????? | | ?????????????????????????????????????????????????? | | | | | | | +----------------------------------------------------+ Best States ------------- Heat Dissipation 73 Energy Generation 41 Energy Capacity 780 Matter Stores 550 Matter Capacity 550 Sight Range 16 Robot Scan Range 20 Terrain Scan Density 10 ECM Strength 2 Jamming Range 14 Cloak Strength 5 Armor Coverage 975 Resistance: KI 55 Resistance: TH 35 Resistance: EX 35 Resistance: EM 35 Resistance: I 35 Resistance: S 35 Resistance: P 35 Phase Shifting 5 Evasion (%) 59 Targeting Accuracy 8 Core Analysis 6 Recoil Reduction 3 Offensive Hacking 20 Item Schematics ----------------- None Robot Schematics ------------------ None Fabricated ------------ Myomer Leg | x2 | -6/Factory | Preloaded Antimatter Reactor | x2 | -6/Factory | Preloaded Particle Reactor | x2 | -5/Factory | Preloaded Alien Tech Used ----------------- None Achievements -------------- None Challenges ------------ None Game ------ Seed HugeRegenerativeHammer Manual? 0 Play Time 01:09:58 Cumulative 52.2 hours Start 2023.03.27 @ 13:12:13 End 2023.03.27 @ 22:03:44 Sessions 5 Manual Loads 0 Difficulty Explorer Special Mode None Game No. 77 Rogue 0 Adventurer 0 Explorer 77 Win Type - Total 0 Types 0/0/0/0/0/0/0/0/0 Lore% 39 Gallery% 49 Achievement% 46 Wizard Run 0 Options --------- ASCII 0 Keyboard 0 Movement Mouse Keybinds 0 Fullscreen 2 Font 18/SmallcapsGlow Map View 76x50 Tactical HUD 1 Map Filters NONE Filters NONE Steam 1 RUN: 2c4a3189-6bf8-46c1-ba86-f924c2a09706